bitfinex/quotes_SOLUSD_20250514
["timestamp","ask_amount","ask_price","bid_price","bid_amount"]
[1747210204097,39.14364319,180.8,180.69,6.6356]
[1747210204098,19.78523612,180.78,180.69,6.6356]
[1747210204305,19.78523612,180.75,180.69,26.42083612]
[1747210204635,19.78523612,180.72,180.63,6.1743]
[1747210204824,19.78523612,180.7,180.64,19.78523612]
[1747210205113,19.78523612,180.69,180.64,19.78523612]
[1747210205417,39.15650022,180.68,180.62,1.5534]
[1747210205573,19.78523612,180.65,180.59,19.78523612]
[1747210205776,19.3712641,180.68,180.59,19.78523612]
[1747210206004,19.78523612,180.64,180.59,19.78523612]
[1747210206207,19.78523612,180.62,180.57,25.95953612]
[1747210206510,19.78523612,180.62,180.56,1.6242]
[1747210206689,31.4,180.64,180.56,1.6242]
[1747210206690,19.78523612,180.61,180.56,21.40943612]
[1747210206881,31.4,180.64,180.56,1.6242]
[1747210206882,19.78523612,180.62,180.56,1.6242]
[1747210207203,19.78523612,180.57,180.51,6.1743]
[1747210207509,19.78523612,180.53,180.49,1.5497]
[1747210207888,19.38628557,180.54,180.49,1.5497]
[1747210208112,5.53893873,180.54,180.49,1.5497]
[1747210208314,25.32417485,180.54,180.49,1.5497]
[1747210208486,19.78523612,180.53,180.46,8.6697199]
[1747210208686,39.17152169,180.54,180.46,8.6697199]
[1747210208905,19.38628557,180.54,180.48,19.78523612]
[1747210209205,39.17152169,180.54,180.46,8.6697199]
[1747210209410,19.38306473,180.57,180.5,19.78523612]
[1747210209622,19.38306473,180.57,180.52,19.78523612]
[1747210209917,19.38306473,180.57,180.51,19.78523612]
[1747210209918,19.78523612,180.56,180.51,19.78523612]
[1747210210086,19.38306473,180.57,180.51,19.78523612]
[1747210210281,19.78523612,180.54,180.47,18.64964886]
[1747210210501,19.78523612,180.52,180.46,8.6697199]
[1747210210709,19.78523612,180.51,180.46,8.6697199]
[1747210210910,19.78523612,180.49,180.46,8.6697199]
[1747210211088,19.78523612,180.48,180.46,8.6697199]
[1747210211283,19.78523612,180.47,180.46,8.6697199]
[1747210211487,51.32632328,180.47,180.46,8.6697199]
[1747210211686,45.39588254,180.47,180.46,7.0520199]
[1747210212002,71.39588254,180.47,180.46,7.0520199]
[1747210212322,26.0,180.44,180.32,1.6205]
[1747210212620,19.78523612,180.36,180.26,28.29157977]
[1747210212782,19.78523612,180.36,180.26,8.50634365]
[1747210212986,19.78523612,180.32,180.26,8.50634365]
[1747210213181,5.45720133,180.46,180.28,19.78523612]
[1747210213483,5.54477405,180.35,180.27,1.5433]
[1747210213796,19.78523612,180.33,180.29,18.64964886]
[1747210213993,45.40348153,180.38,180.28,18.64964886]
[1747210214314,45.40348153,180.38,180.27,1.5433]
[1747210214648,19.78523612,180.36,180.27,1.5433]
[1747210215109,47.12274087,180.38,180.27,21.32853612]
[1747210215417,5.5460041,180.31,180.27,1.5433]
[1747210215927,5.5460041,180.31,180.22,18.64964886]
[1747210216111,19.78523612,180.29,180.2,1.5433]
[1747210216282,19.41101436,180.31,180.22,19.78523612]
[1747210216283,19.78523612,180.28,180.22,19.78523612]
[1747210216486,19.78523612,180.3,180.2,1.5433]
[1747210216689,19.78523612,180.3,180.21,18.64964886]
[1747210216904,25.3308857,180.33,180.27,19.78523612]
[1747210217115,32.86,180.35,180.2,7.09266449]
[1747210217282,32.86,180.35,180.22,32.08]
[1747210217283,19.78523612,180.35,180.22,32.08]
[1747210217481,19.78523612,180.32,180.23,18.64964886]
[1747210217705,5.54446662,180.36,180.28,38.43488498]
[1747210217905,19.78523612,180.33,180.28,19.78523612]
[1747210218296,19.78523612,180.33,180.27,19.78523612]
[1747210218522,19.78523612,180.33,180.25,18.64964886]
[1747210218695,19.40563317,180.36,180.32,19.78523612]
[1747210218885,19.78523612,180.34,180.23,0.14216157]
[1747210219082,19.78523612,180.28,180.2,1.5433]
[1747210219297,19.78523612,180.24,180.2,1.5433]
[1747210219512,19.41209095,180.3,180.18,19.78523612]
[1747210219746,19.41209095,180.3,180.16,6.5278]
[1747210219937,19.41209095,180.3,180.21,19.78523612]
[1747210220241,19.41209095,180.3,180.28,19.78523612]
[1747210220242,5.5463117,180.3,180.28,19.78523612]
[1747210220433,5.5463117,180.3,180.29,19.78523612]
[1747210220613,5.5463117,180.3,180.2,18.64964886]
[1747210220816,19.40567289,180.36,180.29,19.78523612]
[1747210221030,19.40567289,180.36,180.24,18.64964886]
[1747210221241,19.78523612,180.34,180.22,18.64964886]
[1747210221442,13.86193512,180.35,180.29,19.78523612]
[1747210221623,33.64717124,180.35,180.29,19.78523612]
[1747210221937,5.54446662,180.36,180.28,18.64964886]
[1747210222141,19.40563317,180.36,180.28,19.78523612]
[1747210222339,19.40563317,180.36,180.22,33.06]
[1747210222340,19.78523612,180.31,180.22,33.06]
[1747210222643,19.78523612,180.28,180.25,26.0]
[1747210222823,0.28432314,180.35,180.25,26.0]
[1747210223151,19.78523612,180.3,180.25,26.0]
[1747210223324,5.5472347,180.27,180.23,19.78523612]
[1747210223645,5.5472347,180.27,180.26,19.78523612]
[1747210223853,5.5463117,180.3,180.26,19.78523612]
[1747210224147,19.41209095,180.3,180.25,26.0]
[1747210224739,19.41209095,180.3,180.29,19.78523612]
[1747210224740,5.5463117,180.3,180.29,19.78523612]
[1747210224936,5.545389,180.33,180.29,19.78523612]
[1747210225238,5.545389,180.33,180.28,19.78523612]
[1747210225239,39.19409764,180.33,180.28,19.78523612]
[1747210225539,39.19409764,180.33,180.24,18.64964886]
[1747210225715,19.40886152,180.33,180.3,19.78523612]
[1747210225911,19.40886152,180.33,180.29,19.78523612]
[1747210226114,19.40886152,180.33,180.3,19.78523612]
[1747210226316,22.00316152,180.33,180.2,0.14216157]
[1747210226513,22.00316152,180.33,180.05,70.89451928]
[1747210226514,19.78523612,180.22,180.06,5.55370432]
[1747210226731,19.78523612,180.19,180.14,19.78523612]
[1747210226921,0.14216157,180.29,180.05,8.0633]
[1747210226922,26.0,180.3,180.16,19.78523612]
[1747210227113,26.0,180.3,180.05,13.6171362]
[1747210227114,33.28,180.29,180.2,19.78523612]
[1747210227319,10.0,180.34,180.14,18.64964886]
[1747210227320,233.70216157,180.35,180.23,19.78523612]
[1747210227548,33.28,180.3,180.19,18.64964886]
[1747210227849,33.28,180.3,180.23,19.78523612]
[1747210228045,33.28,180.3,180.25,19.78523612]
[1747210228046,53.06523612,180.3,180.25,19.78523612]
[1747210228251,53.06523612,180.3,180.19,44.64964886]
[1747210228439,33.28,180.3,180.24,19.78523612]
[1747210228755,33.28,180.3,180.21,19.78523612]
[1747210228931,19.78523612,180.27,180.22,19.78523612]
[1747210229126,33.28,180.3,180.22,19.78523612]
[1747210229320,33.28,180.3,180.19,19.78523612]
[1747210229628,19.78523612,180.27,180.14,18.64964886]
[1747210229949,19.78523612,180.22,180.11,18.64964886]
[1747210230335,19.78523612,180.27,180.16,19.78523612]
[1747210230657,19.78523612,180.27,180.1,33.08]
[1747210230658,74.879361,180.29,180.2,19.78523612]
[1747210230829,74.879361,180.29,180.15,18.64964886]
[1747210230830,19.78523612,180.23,180.15,18.64964886]
[1747210231033,74.879361,180.29,180.2,19.78523612]
[1747210231224,74.879361,180.29,180.18,18.64964886]
[1747210231424,39.20378915,180.24,180.14,18.64964886]
[1747210231636,19.78523612,180.22,180.14,18.64964886]
[1747210231864,19.78523612,180.18,180.09,7.7137]
[1747210232049,19.78523612,180.16,180.09,1.5431]
[1747210232223,19.78523612,180.15,180.09,1.5431]
[1747210232429,19.78523612,180.13,180.03,7.7075]
[1747210232627,34.04,180.12,180.0,1.0]
[1747210232858,19.78523612,180.06,180.0,1.0]
[1747210233163,34.04,180.12,180.01,19.78523612]
[1747210233456,3.37862314,180.14,180.0,1.0]
[1747210233457,19.43688565,180.07,180.0,1.0]
[1747210234126,5.5533959,180.07,180.04,19.78523612]
[1747210234333,5.5533959,180.07,180.0,39.43488498]
[1747210234536,19.43688565,180.07,180.03,19.78523612]
[1747210235268,19.43688565,180.07,180.0,1.0]
[1747210235443,19.43256897,180.11,180.0,1.0]
[1747210235765,19.43256897,180.11,180.04,19.78523612]
[1747210235984,19.78523612,180.09,180.04,19.78523612]
[1747210236282,26.0,180.08,180.0,1.0]
[1747210236576,36.66,180.07,180.01,19.78523612]
[1747210236867,19.43256897,180.11,180.0,1.0]
[1747210237172,18.64964886,180.2,180.0,1.0]
[1747210237173,12.5943,180.25,180.03,26.0]
[1747210237388,36.94,180.25,180.09,19.78523612]
[1747210237671,2.5943,180.32,180.18,19.78523612]
[1747210237672,19.41855303,180.24,180.18,19.78523612]
[1747210237970,19.41855303,180.24,180.11,26.0]
[1747210238144,5.54815801,180.24,180.13,6.5326]
[1747210238560,5.54815801,180.24,180.23,19.78523612]
[1747210238774,5.54815801,180.24,180.13,6.5326]
[1747210238775,5.54815801,180.24,180.14,18.64964886]
[1747210239154,5.54815801,180.24,180.13,6.5326]
[1747210239656,5.54815801,180.24,180.22,19.78523612]
[1747210239858,5.54815801,180.24,180.23,19.78523612]
[1747210240060,5.54815801,180.24,180.15,18.64964886]
[1747210240263,13.8672494,180.29,180.23,19.78523612]
[1747210240264,5.546927,180.28,180.23,19.78523612]
[1747210240457,5.546927,180.28,180.27,19.78523612]
[1747210240651,56.60523612,180.34,180.27,19.78523612]
[1747210240883,5.5453599,180.34,180.33,19.78523612]
[1747210241071,19.40133037,180.4,180.33,19.78523612]
[1747210241274,5.54323725,180.4,180.37,19.78523612]
[1747210241460,13.85563985,180.44,180.39,19.78523612]
[1747210241652,13.85563985,180.44,180.31,5.54596557]
[1747210241972,13.85563985,180.44,180.3,26.0]
[1747210241973,13.85563985,180.44,180.4,19.78523612]
[1747210242388,5.54139421,180.46,180.4,19.78523612]
[1747210242591,5.54139421,180.46,180.44,19.78523612]
[1747210242795,5.54139421,180.46,180.45,19.78523612]
[1747210242967,5.54120016,180.47,180.45,19.78523612]
[1747210243164,11.10685675,180.49,180.4,6.4182]
[1747210243165,16.64761854,180.49,180.46,19.78523612]
[1747210243503,16.64761854,180.49,180.4,6.4182]
[1747210243504,30.49880143,180.49,180.4,6.4182]
[1747210243662,30.49880143,180.49,180.48,19.78523612]
[1747210244064,30.49880143,180.49,180.4,6.4182]
[1747210244281,30.49880143,180.49,180.48,19.78523612]
[1747210244486,30.49880143,180.49,180.45,19.78523612]
[1747210244800,30.49880143,180.49,180.4,6.4182]
[1747210245102,26.0,180.48,180.39,19.78523612]
[1747210245302,0.28432314,180.48,180.41,19.78523612]
[1747210245604,19.78523612,180.46,180.36,1.6142]
[1747210245790,19.78523612,180.43,180.37,19.78523612]
[1747210245976,26.0,180.48,180.36,19.78523612]
[1747210245977,19.78523612,180.42,180.36,19.78523612]
[1747210246179,19.78523612,180.44,180.39,19.78523612]
[1747210246406,19.78523612,180.43,180.37,19.78523612]
[1747210246587,26.0,180.43,180.28,1.5081]
[1747210246784,19.78523612,180.42,180.36,19.78523612]
[1747210246981,19.78523612,180.41,180.36,19.78523612]
[1747210247313,19.78523612,180.43,180.28,1.5081]
[1747210247485,19.78523612,180.4,180.35,19.78523612]
[1747210247687,47.39139472,180.44,180.35,19.78523612]
[1747210247890,19.78523612,180.43,180.38,19.78523612]
[1747210248094,19.78523612,180.41,180.28,1.5081]
[1747210248298,19.78523612,180.41,180.36,19.78523612]
[1747210248493,19.78523612,180.4,180.28,1.5081]
[1747210248908,19.78523612,180.41,180.36,19.78523612]
[1747210249083,19.78523612,180.4,180.28,1.5081]
[1747210249279,19.78523612,180.4,180.35,19.78523612]
[1747210249479,26.0,180.43,180.37,19.78523612]
[1747210249480,19.39917968,180.42,180.37,19.78523612]
[1747210250138,19.39917968,180.42,180.28,1.5081]
[1747210250139,47.11229352,180.42,180.29,18.64964886]
[1747210250315,66.89752964,180.42,180.36,19.78523612]
[1747210250624,66.89752964,180.42,180.28,1.5081]
[1747210250625,19.78523612,180.39,180.33,19.78523612]
[1747210250829,47.11229352,180.42,180.35,19.78523612]
[1747210251047,19.78523612,180.4,180.35,19.78523612]
[1747210251536,19.40240589,180.39,180.35,19.78523612]
[1747210251743,19.40240589,180.39,180.37,19.78523612]
[1747210252243,19.40240589,180.39,180.38,19.78523612]
[1747210252610,19.40240589,180.39,180.37,19.78523612]
[1747210253027,19.40240589,180.39,180.29,44.64964886]
[1747210253218,19.40240589,180.39,180.29,26.0]
[1747210253418,19.40240589,180.39,180.34,19.78523612]
[1747210253714,39.18764201,180.39,180.34,19.78523612]
[1747210253905,47.1201286,180.39,180.34,19.78523612]
[1747210254105,19.40240589,180.39,180.36,19.78523612]
[1747210254312,19.40240589,180.39,180.28,20.15774886]
[1747210254313,19.40240589,180.39,180.35,19.78523612]
[1747210254514,39.18764201,180.39,180.33,19.78523612]
[1747210254713,19.40240589,180.39,180.33,19.78523612]
[1747210254938,47.1201286,180.39,180.28,1.5081]
[1747210255108,19.78523612,180.38,180.32,19.78523612]
[1747210255308,47.1201286,180.39,180.28,1.5081]
[1747210255309,66.90536472,180.39,180.33,19.78523612]
[1747210255509,47.1201286,180.39,180.34,19.78523612]
[1747210255722,47.1201286,180.39,180.28,1.5081]
[1747210255723,66.90536472,180.39,180.33,19.78523612]
[1747210255942,66.90536472,180.39,180.28,1.5081]
[1747210256142,47.1201286,180.39,180.33,19.78523612]
[1747210256453,66.90536472,180.39,180.28,1.5081]
[1747210256615,66.90536472,180.39,180.34,19.78523612]
[1747210257139,19.40240589,180.39,180.34,19.78523612]
[1747210257353,19.40240589,180.39,180.35,19.78523612]
[1747210257565,47.10707158,180.44,180.35,19.78523612]
[1747210257739,19.78523612,180.42,180.36,19.78523612]
[1747210257939,19.78523612,180.42,180.37,19.78523612]
[1747210259158,47.10707158,180.44,180.37,19.78523612]
[1747210259382,47.10707158,180.44,180.4,19.78523612]
[1747210259540,47.10707158,180.44,180.31,44.64964886]
[1747210259541,47.10707158,180.44,180.31,26.0]
[1747210259867,19.78523612,180.4,180.28,27.5081]
[1747210260034,19.78523612,180.37,180.28,1.5081]
[1747210260367,19.78523612,180.36,180.31,19.78523612]
[1747210260671,19.78523612,180.32,180.21,1.5651]
[1747210260852,19.78523612,180.3,180.24,19.78523612]
[1747210261165,19.78523612,180.29,180.23,19.78523612]
[1747210261549,47.13057942,180.35,180.24,19.78523612]
[1747210261753,47.13057942,180.35,180.27,19.78523612]
[1747210261962,47.13057942,180.35,180.3,19.78523612]
[1747210262260,47.13057942,180.35,180.32,19.78523612]
[1747210262470,19.40670917,180.35,180.27,19.78523612]
[1747210262672,19.40670917,180.35,180.34,19.78523612]
[1747210262981,5.54477405,180.35,180.34,19.78523612]
[1747210263282,5.54477405,180.35,180.32,6.3264]
[1747210263439,5.54477405,180.35,180.34,19.78523612]
[1747210263636,19.40133037,180.4,180.34,19.78523612]
[1747210263841,19.40133037,180.4,180.36,19.78523612]
[1747210264374,19.40133037,180.4,180.37,19.78523612]
[1747210264537,19.40133037,180.4,180.38,19.78523612]
[1747210264733,19.40133037,180.4,180.33,1.6004]
[1747210265169,19.40133037,180.4,180.38,19.78523612]
[1747210265367,19.40133037,180.4,180.33,1.6004]
[1747210265368,5.54323725,180.4,180.39,19.78523612]
[1747210265591,19.78523612,180.47,180.39,19.78523612]
[1747210265592,13.85381926,180.46,180.39,19.78523612]
[1747210265795,13.85381926,180.46,180.43,19.78523612]
[1747210266296,5.54108716,180.47,180.36,19.78523612]
[1747210266297,5.54108716,180.47,180.45,19.78523612]
[1747210266499,5.54108716,180.47,180.46,19.78523612]
[1747210266710,5.5395524,180.52,180.46,21.29683612]
[1747210266877,16.48,180.62,180.51,19.78523612]
[1747210266878,33.21891262,180.62,180.51,19.78523612]
[1747210267067,19.37769902,180.62,180.57,19.78523612]
[1747210267307,19.37769902,180.62,180.59,19.78523612]
[1747210267486,5.53648543,180.62,180.55,26.0]
[1747210267688,13.83906161,180.65,180.61,19.78523612]
[1747210267879,13.83906161,180.65,180.63,19.78523612]
[1747210268402,19.78523612,180.64,180.54,19.78523612]
[1747210268625,19.78523612,180.64,180.5,26.0]
[1747210268626,13.83906161,180.65,180.51,18.64964886]
[1747210268771,19.78523612,180.61,180.56,19.78523612]
[1747210269269,19.78523612,180.58,180.46,1.5116]
[1747210269484,19.78523612,180.58,180.48,26.0]
[1747210269804,19.78523612,180.59,180.46,1.5116]
[1747210270004,19.78523612,180.59,180.53,19.78523612]
[1747210270205,41.52364078,180.62,180.55,19.78523612]
[1747210270416,41.52364078,180.62,180.46,1.5116]
[1747210270417,19.78523612,180.58,180.46,1.5116]
[1747210270713,19.78523612,180.54,180.48,19.78523612]
[1747210270894,0.14216157,180.6,180.46,1.5116]
[1747210270895,19.78523612,180.53,180.46,1.5116]
[1747210271093,19.78523612,180.56,180.5,19.78523612]
[1747210271397,19.78523612,180.56,180.51,19.78523612]
[1747210271582,19.78523612,180.56,180.5,19.78523612]
[1747210271909,19.78523612,180.56,180.46,1.5116]
[1747210271910,5.53863195,180.55,180.46,1.5116]
[1747210272121,5.53464688,180.68,180.54,39.57047224]
[1747210272281,13.83738307,180.67,180.61,19.78523612]
[1747210272492,33.62261919,180.67,180.61,19.78523612]
[1747210272693,19.78523612,180.66,180.52,18.64964886]
[1747210272933,41.51214921,180.67,180.6,19.78523612]
[1747210273101,41.51214921,180.67,180.64,19.78523612]
[1747210273102,13.83738307,180.67,180.64,19.78523612]
[1747210273301,13.83738307,180.67,180.65,19.78523612]
[1747210273807,19.36912008,180.7,180.65,19.78523612]
[1747210273997,19.36912008,180.7,180.59,1.6467]
[1747210273998,19.36912008,180.7,180.69,19.78523612]
[1747210274827,5.53403431,180.7,180.69,19.78523612]
[1747210275931,5.53403431,180.7,180.68,6.0476]
[1747210275932,19.78523612,180.76,180.68,6.0476]
[1747210276099,19.78523612,180.75,180.69,19.78523612]
[1747210276291,19.36161973,180.77,180.72,19.78523612]
[1747210276495,19.36161973,180.77,180.73,19.78523612]
[1747210277195,19.36161973,180.77,180.74,19.78523612]
[1747210277424,19.36161973,180.77,180.68,6.0476]
[1747210277425,39.14685585,180.77,180.68,6.0476]
[1747210277725,19.78523612,180.76,180.71,19.78523612]
[1747210277893,19.36376209,180.75,180.71,19.78523612]
[1747210278093,66.81151549,180.75,180.7,19.78523612]
[1747210278524,19.78523612,180.74,180.63,19.78523612]
[1747210278695,47.02627937,180.75,180.69,19.78523612]
[1747210279229,47.02627937,180.75,180.67,19.78523612]
[1747210279230,19.78523612,180.72,180.67,19.78523612]
[1747210279803,19.78523612,180.72,180.63,19.78523612]
[1747210280025,19.78523612,180.68,180.62,6.6447]
[1747210280220,19.78523612,180.67,180.62,26.42993612]
[1747210280426,19.78523612,180.67,180.62,19.78523612]
[1747210280948,19.36804825,180.71,180.66,19.78523612]
[1747210281247,19.36804825,180.71,180.7,19.78523612]
[1747210281451,19.36804825,180.71,180.63,19.78523612]
[1747210281634,19.36804825,180.71,180.68,19.78523612]
[1747210281836,19.36804825,180.71,180.69,19.78523612]
[1747210282131,13.83432018,180.71,180.63,19.78523612]
[1747210282335,13.83432018,180.71,180.66,19.78523612]
[1747210282644,13.83432018,180.71,180.67,19.78523612]
[1747210282843,13.83432018,180.71,180.68,19.78523612]
[1747210283351,13.83432018,180.71,180.7,19.78523612]
[1747210283521,5.53311569,180.73,180.7,19.78523612]
[1747210283722,25.31835181,180.73,180.68,19.78523612]
[1747210283918,19.36590493,180.73,180.63,19.78523612]
[1747210284122,19.36590493,180.73,180.69,19.78523612]
[1747210284938,19.78523612,180.72,180.67,19.78523612]
[1747210285124,19.78523612,180.71,180.59,1.6467]
[1747210285443,19.78523612,180.66,180.61,19.78523612]
[1747210285824,19.78523612,180.67,180.62,19.78523612]
[1747210286023,19.78523612,180.72,180.59,1.6467]
[1747210286024,19.78523612,180.65,180.59,21.43193612]
[1747210286330,39.15864472,180.66,180.61,19.78523612]
[1747210286527,19.78523612,180.65,180.59,1.6467]
[1747210286838,19.78523612,180.65,180.6,19.78523612]
[1747210287034,19.3734086,180.66,180.56,6.6127]
[1747210287035,19.78523612,180.64,180.56,6.6127]
[1747210287235,19.78523612,180.63,180.57,19.78523612]
[1747210287442,19.78523612,180.64,180.59,19.78523612]
[1747210287935,19.3734086,180.66,180.61,19.78523612]
[1747210288135,5.5352596,180.66,180.56,6.6127]
[1747210288363,19.3734086,180.66,180.63,19.78523612]
[1747210288568,19.3734086,180.66,180.65,19.78523612]
[1747210288768,19.3734086,180.66,180.56,6.6127]
[1747210289267,19.3734086,180.66,180.63,19.78523612]
[1747210289564,19.3734086,180.66,180.56,6.6127]
[1747210289741,19.3734086,180.66,180.62,19.78523612]
[1747210290064,19.78523612,180.65,180.59,19.78523612]
[1747210290247,19.78523612,180.63,180.56,6.6127]
[1747210290558,19.37769902,180.62,180.58,19.78523612]
[1747210290769,39.16293514,180.62,180.56,6.6127]
[1747210290948,39.16293514,180.62,180.57,19.78523612]
[1747210291260,19.37769902,180.62,180.57,19.78523612]
[1747210291467,39.16293514,180.62,180.57,19.78523612]
[1747210291657,39.16293514,180.62,180.53,1.5047]
[1747210291971,19.37769902,180.62,180.56,19.78523612]
[1747210292174,19.37769902,180.62,180.53,1.5047]
[1747210292175,5.53648543,180.62,180.61,19.78523612]
[1747210292379,19.78523612,180.69,180.61,19.78523612]
[1747210292679,19.78523612,180.68,180.62,19.78523612]
[1747210292883,19.78523612,180.66,180.54,80.48523612]
[1747210293172,19.78523612,180.65,180.54,54.48523612]
[1747210293375,19.78523612,180.62,180.57,19.78523612]
[1747210293567,19.78523612,180.62,180.54,34.7]
[1747210293747,19.78523612,180.62,180.53,1.5047]
[1747210293748,19.78523612,180.62,180.57,19.78523612]
[1747210294577,19.37877193,180.61,180.58,19.78523612]
[1747210294749,5.53679198,180.61,180.6,19.78523612]
[1747210294960,55.47944229,180.71,180.6,19.78523612]
[1747210294961,19.37261443,180.67,180.6,19.78523612]
[1747210295159,19.37261443,180.67,180.64,19.78523612]
[1747210295483,19.37261443,180.67,180.63,19.78523612]
[1747210295785,19.78523612,180.66,180.54,38.43488498]
[1747210296087,19.78523612,180.66,180.61,19.78523612]
[1747210296277,47.04738057,180.67,180.62,19.78523612]
[1747210296450,19.78523612,180.65,180.54,19.78523612]
[1747210296751,47.04738057,180.67,180.57,19.78523612]
[1747210296752,19.78523612,180.63,180.57,19.78523612]
[1747210296952,19.78523612,180.64,180.59,19.78523612]
[1747210297151,19.78523612,180.66,180.61,19.78523612]
[1747210297370,19.78523612,180.64,180.59,19.78523612]
[1747210297553,19.78523612,180.65,180.6,19.78523612]
[1747210297762,47.04738057,180.67,180.6,19.78523612]
[1747210298181,19.78523612,180.65,180.6,19.78523612]
[1747210298474,19.78523612,180.64,180.59,19.78523612]
[1747210298696,19.78523612,180.61,180.53,1.5047]
[1747210298854,19.78523612,180.61,180.56,19.78523612]
[1747210299255,66.8375472,180.65,180.6,19.78523612]
[1747210299554,47.05231108,180.65,180.61,19.78523612]
[1747210299750,19.37448103,180.65,180.61,19.78523612]
[1747210299952,19.37448103,180.65,180.63,19.78523612]
[1747210300264,5.53556601,180.65,180.64,19.78523612]
[1747210300468,19.78523612,180.7,180.64,19.78523612]
[1747210300661,19.78523612,180.7,180.65,19.78523612]
[1747210300861,19.36590493,180.73,180.68,19.78523612]
[1747210301068,39.15114105,180.73,180.68,19.78523612]
[1747210301370,19.78523612,180.71,180.65,19.78523612]
[1747210301570,19.78523612,180.7,180.64,19.78523612]
[1747210301767,19.78523612,180.69,180.64,19.78523612]
[1747210302087,19.78523612,180.67,180.62,19.78523612]
[1747210302286,19.78523612,180.72,180.55,52.06964886]
[1747210302287,26.0,180.71,180.55,6.5992]
[1747210302506,39.16186236,180.63,180.57,19.78523612]
[1747210302702,19.78523612,180.61,180.56,19.78523612]
[1747210303071,19.78523612,180.59,180.53,1.5047]
[1747210303369,19.78523612,180.58,180.53,21.28993612]
[1747210303683,19.78523612,180.58,180.53,1.5047]
[1747210303891,19.78523612,180.56,180.49,6.5992]
[1747210304092,19.78523612,180.54,180.44,33.7]
[1747210304286,19.78523612,180.53,180.47,19.78523612]
[1747210304485,19.38843341,180.52,180.47,19.78523612]
[1747210304687,19.38843341,180.52,180.41,8.0149]
[1747210304900,19.38843341,180.52,180.42,26.0]
[1747210305199,19.78523612,180.48,180.42,19.78523612]
[1747210305701,19.78523612,180.48,180.37,33.7]
[1747210305903,19.78523612,180.48,180.42,19.78523612]
[1747210306105,19.78523612,180.45,180.37,33.7]
[1747210306404,19.78523612,180.39,180.34,19.78523612]
[1747210306595,19.40348153,180.38,180.29,7.7666]
[1747210306795,19.40348153,180.38,180.33,19.78523612]
[1747210307106,19.40348153,180.38,180.34,19.78523612]
[1747210307478,19.40348153,180.38,180.35,19.78523612]
[1747210307709,19.40348153,180.38,180.34,19.78523612]
[1747210308403,19.78523612,180.36,180.29,7.7666]
[1747210308580,19.40778529,180.34,180.3,19.78523612]
[1747210308776,39.19302141,180.34,180.28,19.78523612]
[1747210309206,5.54508151,180.34,180.31,19.78523612]
[1747210310100,5.54508151,180.34,180.24,18.64964886]
[1747210310297,5.54494948,180.35,180.33,19.78523612]
[1747210310620,5.54292999,180.41,180.34,19.78523612]
[1747210310805,5.54292999,180.41,180.4,19.78523612]
[1747210311820,19.39810451,180.43,180.3,18.64964886]
[1747210312023,19.78523612,180.4,180.35,19.78523612]
[1747210312224,19.78523612,180.4,180.34,19.78523612]
[1747210312401,19.78523612,180.39,180.34,19.78523612]
[1747210312718,19.39810451,180.43,180.35,19.78523612]
[1747210312918,19.78523612,180.41,180.35,19.78523612]
[1747210313124,19.39810451,180.43,180.29,32.76]
[1747210313125,19.78523612,180.4,180.29,32.76]
[1747210313327,19.78523612,180.4,180.35,19.78523612]
[1747210313622,19.78523612,180.4,180.29,32.76]
[1747210313807,19.78523612,180.4,180.35,19.78523612]
[1747210314205,5.54354454,180.39,180.36,19.78523612]
[1747210314407,5.54354454,180.39,180.38,19.78523612]
[1747210314611,27.70604656,180.47,180.38,19.78523612]
[1747210314612,5.54262276,180.42,180.38,19.78523612]
[1747210314833,5.54262276,180.42,180.31,44.64964886]
[1747210315000,5.5417013,180.45,180.41,19.78523612]
[1747210315199,5.5417013,180.45,180.44,19.78523612]
[1747210316021,5.5417013,180.45,180.37,26.0]
[1747210316022,5.54047315,180.49,180.37,26.0]
[1747210316226,5.54047315,180.49,180.44,19.78523612]
[1747210316610,5.54047315,180.49,180.42,19.78523612]
[1747210316611,19.78523612,180.47,180.42,19.78523612]
[1747210316928,19.78523612,180.48,180.42,19.78523612]
[1747210317111,19.78523612,180.48,180.43,19.78523612]
[1747210317724,19.39380506,180.47,180.43,19.78523612]
[1747210317915,19.39380506,180.47,180.44,19.78523612]
[1747210318238,5.54108716,180.47,180.45,19.78523612]
[1747210318424,5.54108716,180.47,180.36,26.13883612]
[1747210318425,19.78523612,180.46,180.36,6.3536]
[1747210318633,19.78523612,180.44,180.38,19.78523612]
[1747210318829,19.78523612,180.43,180.38,19.78523612]
[1747210319019,39.17904118,180.47,180.42,19.78523612]
[1747210319433,39.17904118,180.47,180.41,19.78523612]
[1747210319730,19.39380506,180.47,180.41,19.78523612]
[1747210320044,19.39380506,180.47,180.36,26.13883612]
[1747210320045,5.54108716,180.47,180.44,19.78523612]
[1747210320246,5.54047315,180.49,180.46,19.78523612]
[1747210320413,5.54047315,180.49,180.47,19.78523612]
[1747210321214,5.54047315,180.49,180.46,19.78523612]